bitfinex/quotes_SOLUSD_20240712
["timestamp","ask_amount","ask_price","bid_price","bid_amount"]
[1720798010683,7.1974,138.94,138.9,7.1992]
[1720798011581,7.1974,138.94,138.91,7.1988]
[1720798011886,7.1966,138.96,138.92,7.1981]
[1720798012094,7.1966,138.96,138.93,7.1978]
[1720798012379,7.196,138.97,138.93,7.1978]
[1720798012785,7.1963,138.96,138.93,7.1978]
[1720798013374,7.1963,138.96,138.92,7.1982]
[1720798014078,7.1963,138.96,138.93,7.1978]
[1720798014278,7.1958,138.97,138.93,7.1978]
[1720798016489,7.1958,138.97,138.94,7.1973]
[1720798016682,2.73958768,138.99,138.89,1.43948469]
[1720798016879,7.1948,138.99,138.91,15.1901]
[1720798017074,7.1948,138.99,138.95,7.1966]
[1720798017271,7.1952,138.98,138.93,1.4393418]
[1720798017490,7.1949,138.99,138.95,7.1967]
[1720798017693,7.1952,138.98,138.94,7.1971]
[1720798017869,39.6445,139.01,138.94,7.1971]
[1720798018067,7.1956,138.98,138.94,7.1971]
[1720798019168,21.66,138.98,138.93,7.1976]
[1720798019369,7.1959,138.97,138.93,7.1976]
[1720798020100,34.7,138.99,138.94,7.1972]
[1720798020307,7.1959,138.97,138.93,7.1977]
[1720798020602,56.36,138.99,138.92,21.4387343]
[1720798020794,7.1948,138.99,138.95,7.1965]
[1720798021405,55.0,139.0,138.92,20.0]
[1720798021598,7.1949,138.99,138.95,7.1968]
[1720798021902,2.72752192,139.01,138.94,6.2581]
[1720798022197,34.7,139.02,138.97,7.1956]
[1720798022697,7.1942,139.0,138.96,7.1961]
[1720798023093,7.1939,139.01,138.97,7.1957]
[1720798023394,7.1939,139.01,138.94,6.2581]
[1720798023395,21.66,139.01,138.94,6.2581]
[1720798023589,7.1952,138.99,138.95,7.1966]
[1720798023798,21.66,139.01,138.95,7.1966]
[1720798023979,7.1943,139.0,138.96,7.1962]
[1720798024592,59.12594499,139.02,138.97,7.1957]
[1720798024593,7.1939,139.01,138.97,7.1957]
[1720798026007,7.1944,139.0,138.96,7.1962]
[1720798026481,7.1944,139.0,138.97,7.1957]
[1720798027301,2.76594499,139.02,138.95,16.511]
[1720798027597,7.1932,139.02,138.98,7.1952]
[1720798027802,7.1938,139.01,138.97,7.1956]
[1720798028009,7.1943,139.0,138.96,7.1961]
[1720798028313,7.1933,139.02,138.98,7.1951]
[1720798029383,7.1928,139.03,138.99,7.1946]
[1720798029778,56.36,139.04,138.98,7.1951]
[1720798030191,66.66,139.03,138.95,16.511]
[1720798030595,7.1925,139.04,139.0,7.1938]
[1720798031714,7.1927,139.03,139.0,7.1938]
[1720798032079,7.1923,139.04,139.01,7.1936]
[1720798032384,7.1914,139.06,139.02,7.1928]
[1720798034995,0.8479775,139.08,139.07,7.1906]
[1720798035318,0.8479775,139.08,139.07,22.2745]
[1720798035895,0.8479775,139.08,139.07,15.0839]
[1720798036198,0.8479775,139.08,139.03,21.7108]
[1720798036388,0.8479775,139.08,139.04,20.0]
[1720798036589,7.1931,139.03,138.99,21.639]
[1720798036789,0.8479775,139.08,138.99,21.639]
[1720798036988,0.8479775,139.08,139.04,7.1918]
[1720798037217,0.8479775,139.08,138.99,21.639]
[1720798037918,0.8479775,139.08,139.06,7.191]
[1720798038213,0.8479775,139.08,139.07,7.1906]
[1720798039388,98.5804,139.2,139.07,7.1906]
[1720798039389,15.26704008,139.19,139.08,21.7309]
[1720798039700,7.22744008,139.19,139.14,7.1869]
[1720798040787,7.22744008,139.19,139.09,65.0]
[1720798040788,0.04274008,139.19,139.09,65.0]
[1720798041010,7.22714008,139.19,139.09,65.0]
[1720798041208,0.04274008,139.19,139.09,65.0]
[1720798041899,7.1849,139.18,139.09,65.0]
[1720798042093,0.04274008,139.19,139.1,1.43720099]
[1720798042298,0.04274008,139.19,139.09,65.0]
[1720798043100,7.22754008,139.19,139.09,65.0]
[1720798043288,0.04274008,139.19,139.09,65.0]
[1720798044225,0.04274008,139.19,139.11,21.4347]
[1720798044513,0.8479775,139.22,139.15,15.3511]
[1720798044723,0.8479775,139.22,139.18,16.1151]
[1720798045009,0.8479775,139.22,139.19,66.43629608]
[1720798045198,0.8479775,139.22,139.19,21.43629608]
[1720798046439,7.1773,139.33,139.21,6.6024]
[1720798046591,21.9415,139.35,139.22,81.83291019]
[1720798046791,7.1772,139.33,139.22,81.83291019]
[1720798047107,7.1789,139.3,139.22,81.83291019]
[1720798047310,0.8479775,139.36,139.22,80.397]
[1720798047508,10.0,139.34,139.22,35.397]
[1720798047817,10.8479775,139.36,139.23,1.43615688]
[1720798047993,7.1778,139.32,139.24,6.4194]
[1720798048189,0.8479775,139.36,139.25,20.0]
[1720798048395,7.1772,139.33,139.26,45.0]
[1720798048593,0.8479775,139.36,139.26,45.0]
[1720798048801,0.8479775,139.36,139.25,20.0]
[1720798049003,7.1776,139.33,139.25,20.0]
[1720798049202,0.8479775,139.36,139.25,20.0]
[1720798049404,7.1764,139.35,139.25,20.0]
[1720798049604,7.1766,139.34,139.25,20.0]
[1720798049821,8.0238775,139.36,139.25,20.0]
[1720798050010,7.1766,139.35,139.26,60.7371]
[1720798050399,0.8479775,139.36,139.27,20.0]
[1720798050909,8.0238775,139.36,139.27,20.0]
[1720798051111,7.1772,139.33,139.27,20.0]
[1720798051319,7.1765,139.35,139.27,20.0]
[1720798051503,7.1768,139.34,139.27,20.0]
[1720798052227,7.1762,139.35,139.27,20.0]
[1720798052400,0.8479775,139.36,139.27,20.0]
[1720798052601,7.1762,139.35,139.27,20.0]
[1720798053222,0.8479775,139.36,139.27,20.0]
[1720798053412,7.1766,139.35,139.27,20.0]
[1720798053723,7.1766,139.35,139.28,1.4271003]
[1720798054111,7.1772,139.33,139.27,20.0]
[1720798054308,0.8479775,139.36,139.27,20.0]
[1720798054524,7.1766,139.34,139.27,20.0]
[1720798054723,0.8479775,139.36,139.27,20.0]
[1720798054934,8.0240775,139.36,139.27,20.0]
[1720798055108,0.8479775,139.36,139.28,6.3803]
[1720798055309,0.8479775,139.36,139.29,20.0]
[1720798056029,8.0236775,139.36,139.3,1.43551299]
[1720798056227,0.8479775,139.36,139.3,1.43551299]
[1720798057524,0.8479775,139.36,139.3,46.43551299]
[1720798057703,0.8479775,139.36,139.31,23.25098311]
[1720798057909,0.8479775,139.36,139.32,65.0]
[1720798058107,0.8479775,139.36,139.33,1.43500737]
[1720798058614,0.8479775,139.36,139.32,21.43500774]
[1720798058811,0.8479775,139.36,139.33,1.43490512]
[1720798059005,8.0235775,139.36,139.32,20.0]
[1720798059206,7.1762,139.35,139.31,21.8156]
[1720798059406,7.1767,139.34,139.31,21.8156]
[1720798059712,0.8479775,139.36,139.31,21.8156]
[1720798061029,0.8479775,139.36,139.32,20.0]
[1720798064400,0.8479775,139.36,139.33,45.0]
[1720798064607,0.8479775,139.36,139.34,20.0]
[1720798065444,0.8479775,139.36,139.35,45.0]
[1720798065616,0.8479775,139.36,139.35,20.0]
[1720798065803,40.3424,139.46,139.35,20.0]
[1720798065804,2.7624077,139.47,139.35,42.444]
[1720798066007,2.7624077,139.47,139.36,20.0]
[1720798066008,17.9255,139.47,139.36,20.0]
[1720798066325,7.1715,139.44,139.36,20.0]
[1720798066507,22.3416775,139.49,139.37,45.0]
[1720798066712,25.05174312,139.49,139.38,20.0]
[1720798067142,3.55804312,139.49,139.39,23.0005]
[1720798067343,3.55804312,139.49,139.4,20.0]
[1720798067621,0.8479775,139.49,139.43,6.5128]
[1720798067824,0.8479775,139.49,139.44,20.0]
[1720798068507,7.1704,139.47,139.44,20.0]
[1720798068707,7.1697,139.48,139.43,6.5128]
[1720798068936,0.8479775,139.49,139.44,22.3346]
[1720798069225,0.8479775,139.49,139.45,45.0]
[1720798069425,0.8479775,139.49,139.46,20.0]
[1720798069722,0.8479775,139.49,139.47,1.43058513]
[1720798069912,0.2,139.59,139.48,22.4459]
[1720798070111,0.2,139.59,139.49,65.0]
[1720798070913,0.2,139.59,139.51,22.265]
[1720798071115,0.2,139.59,139.52,45.0]
[1720798071320,0.0001,139.59,139.55,16.2017]
[1720798071520,0.0001,139.59,139.56,20.0]
[1720798071911,0.04261087,139.61,139.59,15.0682]
[1720798072110,0.8479775,139.63,139.6,71.6474]
[1720798072111,8.837e-05,139.63,139.6,71.6474]
[1720798072447,8.837e-05,139.63,139.6,26.6474]
[1720798072912,8.837e-05,139.63,139.61,22.7565]
[1720798073113,8.837e-05,139.63,139.62,20.0]
[1720798074413,8.837e-05,139.63,139.62,65.0]
[1720798074737,8.837e-05,139.63,139.62,20.0]
[1720798075122,8.837e-05,139.63,139.62,1.43192305]
[1720798076627,8.837e-05,139.63,139.62,66.43192305]
[1720798077425,8.837e-05,139.63,139.62,21.43192305]
[1720798078413,8.837e-05,139.63,139.62,20.0]
[1720798079549,0.2,139.69,139.62,20.0]
[1720798079733,0.2,139.69,139.63,45.0]
[1720798079925,0.2,139.69,139.62,20.0]
[1720798080231,0.2,139.69,139.64,20.0]
[1720798080435,0.2,139.69,139.62,20.0]
[1720798081022,0.2,139.69,139.63,45.0]
[1720798081440,0.2,139.69,139.64,20.0]
[1720798082120,7.1598,139.67,139.61,29.9168]
[1720798082322,0.2,139.69,139.61,29.9168]
[1720798082534,17.8992,139.68,139.61,7.1603]
[1720798082726,7.1611,139.65,139.56,6.2578]
[1720798083041,27.8992,139.68,139.56,6.2578]
[1720798083234,17.9027,139.65,139.56,6.2578]
[1720798083539,7.1623,139.62,139.56,6.2578]
[1720798083742,7.1608,139.65,139.56,6.2578]
[1720798084240,0.2,139.69,139.56,6.2578]
[1720798084241,7.1602,139.66,139.56,6.2578]
[1720798084443,0.2,139.69,139.56,6.2578]
[1720798084746,7.3588,139.69,139.57,20.0]
[1720798085044,0.2,139.69,139.57,20.0]
[1720798085220,7.3588,139.69,139.57,20.0]
[1720798085427,0.2,139.69,139.57,20.0]
[1720798085632,0.2,139.69,139.58,45.0]
[1720798085939,0.2,139.69,139.59,6.1531]
[1720798086149,0.2,139.69,139.6,45.0]
[1720798086333,0.2,139.69,139.61,20.0]
[1720798086539,0.2,139.69,139.62,45.0]
[1720798086735,0.2,139.69,139.63,20.0]
[1720798087240,7.1592,139.68,139.64,0.48954855]
[1720798087443,7.1597,139.67,139.6,20.0]
[1720798087645,7.1597,139.67,139.59,22.6141]
[1720798087646,0.2,139.69,139.59,22.6141]
[1720798087828,7.1606,139.66,139.59,22.6141]
[1720798088345,7.1616,139.64,139.55,6.4894]
[1720798088534,7.1613,139.64,139.55,6.4894]
[1720798089041,17.8997,139.67,139.55,6.4894]
[1720798089749,7.1624,139.62,139.55,6.4894]
[1720798089933,7.1628,139.61,139.55,6.4894]
[1720798090132,10.0,139.63,139.5,6.6378]
[1720798090345,7.1639,139.59,139.5,6.6378]
[1720798090646,27.9026,139.65,139.5,6.6378]
[1720798090825,7.1624,139.62,139.5,6.6378]
[1720798091023,92.27,139.66,139.51,1.43164691]
[1720798091024,45.0,139.66,139.51,1.43164691]
[1720798091241,7.1618,139.63,139.51,1.43164691]
[1720798091449,7.1621,139.63,139.5,6.6378]
[1720798091634,17.9015,139.66,139.51,20.0]
[1720798091833,7.1616,139.64,139.51,20.0]
[1720798092044,7.1619,139.63,139.51,20.0]
[1720798092239,7.1619,139.63,139.52,45.0]
[1720798092442,17.9015,139.66,139.53,20.0]
[1720798092646,7.1618,139.63,139.53,20.0]
[1720798092945,17.9015,139.66,139.53,20.0]
[1720798092946,7.1607,139.66,139.53,20.0]
[1720798093246,7.1607,139.66,139.54,45.0]
[1720798093453,0.2,139.69,139.54,66.66]
[1720798093630,0.2,139.69,139.55,20.0]
[1720798093830,0.2,139.69,139.56,45.0]
[1720798094136,0.2,139.69,139.57,20.0]
[1720798094333,17.8982,139.68,139.57,20.0]
[1720798094533,17.8982,139.68,139.51,20.0]
[1720798094733,0.2,139.69,139.52,21.66]
[1720798094944,7.1598,139.67,139.53,43.08913625]
[1720798095142,0.2,139.69,139.53,43.08913625]
[1720798095348,7.1606,139.66,139.53,21.42913625]
[1720798095535,7.1613,139.64,139.54,20.0]
[1720798095731,7.1613,139.64,139.55,46.42893146]
[1720798095935,7.1613,139.64,139.56,20.0]
[1720798096149,17.8983,139.68,139.57,1.43243327]
[1720798096460,17.8983,139.68,139.58,1.43233064]
[1720798096652,7.1611,139.65,139.58,1.43233064]
[1720798096851,17.8983,139.68,139.58,1.43233064]
[1720798097052,7.1616,139.64,139.58,1.43233064]
[1720798097347,7.1613,139.64,139.58,1.43233064]
[1720798097665,7.1639,139.59,139.5,6.6378]
[1720798097833,17.9047,139.63,139.5,6.6378]
[1720798098350,7.1628,139.61,139.5,6.6378]
[1720798098533,17.9035,139.64,139.5,6.6378]
[1720798098730,7.1643,139.59,139.5,6.6378]
[1720798098940,7.1634,139.6,139.5,6.6378]
[1720798099142,17.9035,139.64,139.5,6.6378]
[1720798099340,17.9001,139.67,139.5,28.2978]
[1720798099750,7.1616,139.64,139.5,28.2978]
[1720798099946,7.1618,139.63,139.51,20.0]
[1720798100248,7.1621,139.63,139.52,45.0]
[1720798100450,17.9027,139.65,139.53,20.0]
[1720798100845,7.1631,139.61,139.53,20.0]
[1720798101047,7.1618,139.63,139.54,1.4327392]
[1720798101355,17.9027,139.65,139.55,0.55338229]
[1720798101533,7.1629,139.61,139.55,0.55338229]
[1720798101733,7.1623,139.62,139.54,1.43278112]
[1720798101928,7.1618,139.63,139.55,1.43267844]
[1720798102134,27.8984,139.68,139.55,1.43267844]
[1720798102341,27.8984,139.68,139.55,20.0]
[1720798102539,7.1611,139.65,139.55,20.0]
[1720798102855,10.0,139.7,139.56,1.28923174]
[1720798103155,6.5561,139.72,139.57,22.3182]
[1720798103361,7.1597,139.68,139.58,66.289047]
[1720798103653,7.1599,139.67,139.58,66.289047]
[1720798103850,6.5561,139.72,139.58,66.289047]
[1720798104054,7.1606,139.66,139.58,21.289047]
[1720798104240,7.1614,139.64,139.58,20.0]
[1720798104558,7.1609,139.65,139.58,20.0]
[1720798105162,7.1609,139.65,139.59,1.29130547]
[1720798105368,7.1615,139.64,139.59,1.29130547]
[1720798105542,17.9012,139.66,139.58,20.0]
[1720798105853,17.9043,139.64,139.53,6.2509]
[1720798106042,17.9043,139.64,139.54,1.4328617]
[1720798106240,7.1632,139.61,139.54,1.4328617]
[1720798106467,7.1633,139.6,139.54,1.4328617]
[1720798107050,7.1629,139.61,139.54,1.4328617]
[1720798107365,7.1621,139.63,139.54,1.4328617]
[1720798107663,17.9022,139.65,139.54,1.43267707]
[1720798107864,7.1626,139.62,139.54,21.43267707]
[1720798108049,7.1619,139.63,139.54,21.43267707]
[1720798108553,17.8989,139.68,139.54,21.43267707]
[1720798108763,7.1619,139.63,139.54,21.43267707]
[1720798109166,7.1623,139.62,139.54,21.43267707]
[1720798109371,7.1628,139.61,139.54,21.43267707]
[1720798109574,17.9012,139.66,139.54,21.43267707]
[1720798109747,7.1613,139.64,139.54,21.43267707]
[1720798110054,7.1629,139.61,139.54,21.43267707]
[1720798110237,17.904,139.64,139.54,21.43267707]
[1720798110645,17.9003,139.67,139.54,21.43267707]
[1720798111060,7.1612,139.65,139.54,21.43267707]
[1720798111371,7.1606,139.66,139.55,21.5708]
[1720798111550,0.2,139.69,139.56,21.43224346]
[1720798111762,7.1597,139.67,139.56,21.43224346]
[1720798112069,7.1602,139.66,139.56,21.43224346]
[1720798112270,7.1592,139.68,139.57,6.2761]
[1720798112490,7.3587,139.69,139.59,16.0372]
[1720798112642,0.2,139.69,139.6,21.43178898]
[1720798112842,7.1595,139.68,139.61,1.43168642]
[1720798113274,0.2,139.69,139.61,1.43168642]
[1720798113443,7.1606,139.66,139.61,1.43168642]
[1720798113649,0.2,139.69,139.6,20.0]
[1720798113853,7.1605,139.66,139.6,20.0]
[1720798114056,7.1613,139.64,139.6,20.0]
[1720798114249,7.1613,139.64,139.59,16.0372]
[1720798114763,17.9,139.67,139.59,16.0372]
[1720798115353,7.1607,139.65,139.59,16.0372]
[1720798115563,7.1617,139.64,139.59,16.0372]
[1720798115868,7.1617,139.64,139.6,1.43225337]
[1720798116065,7.1617,139.64,139.59,16.0372]
[1720798116252,7.1617,139.63,139.59,16.0372]
[1720798116446,7.1609,139.65,139.6,0.77355776]
[1720798116665,7.1615,139.64,139.59,16.0372]
[1720798116863,7.1628,139.61,139.59,16.0372]
[1720798117042,7.1623,139.62,139.59,16.0372]
[1720798117247,17.9008,139.66,139.59,16.0372]
[1720798117459,17.9008,139.66,139.57,6.2761]
[1720798117769,7.1627,139.62,139.57,6.2761]
[1720798118158,7.1629,139.61,139.57,6.2761]
[1720798118670,7.1637,139.6,139.57,6.2761]
[1720798118865,7.1629,139.61,139.57,6.2761]
[1720798119170,7.1634,139.6,139.57,6.2761]
[1720798119758,17.9043,139.64,139.57,6.2761]
[1720798119759,7.1638,139.59,139.57,6.2761]
[1720798120351,7.1638,139.59,139.54,6.5138]
[1720798120556,17.9059,139.62,139.54,6.5138]
[1720798120969,7.1629,139.61,139.54,6.5138]
[1720798121173,7.1619,139.63,139.54,6.5138]
[1720798121496,24.4127,139.68,139.54,6.5138]
[1720798121772,7.1617,139.64,139.54,6.5138]
[1720798121952,7.1617,139.63,139.55,20.0]
[1720798122278,0.2,139.69,139.56,15.9248]
[1720798122472,0.2,139.69,139.57,20.0]
[1720798123076,7.1607,139.65,139.57,20.0]
[1720798123377,7.1603,139.66,139.57,20.0]
[1720798123764,7.1607,139.65,139.57,20.0]
[1720798124074,7.1604,139.66,139.57,20.0]
[1720798124252,0.2,139.69,139.57,20.0]
[1720798124447,0.2,139.69,139.58,6.4207]
[1720798124648,0.2,139.69,139.59,20.0]
[1720798124649,7.1597,139.67,139.59,20.0]
[1720798124864,7.1612,139.65,139.59,20.0]
[1720798125262,17.8982,139.68,139.59,20.0]
[1720798125462,17.8982,139.68,139.58,6.4207]
[1720798125673,3.10203285,139.67,139.58,6.4207]
[1720798125958,7.1609,139.65,139.58,6.4207]
[1720798126166,17.8982,139.68,139.58,6.4207]
[1720798126167,7.1613,139.64,139.58,6.4207]
[1720798126362,17.9013,139.66,139.58,6.4207]
[1720798126660,45.0,139.65,139.58,6.4207]
[1720798126992,7.1626,139.62,139.58,6.4207]
[1720798127486,7.1618,139.63,139.58,6.4207]
[1720798127657,7.1623,139.62,139.58,6.4207]
[1720798128379,17.9013,139.66,139.58,6.4207]
[1720798128594,7.1617,139.63,139.58,6.4207]
[1720798128755,7.1624,139.62,139.58,6.4207]
[1720798129879,10.0,139.67,139.58,6.4207]
[1720798130173,3.10224261,139.66,139.58,6.4207]
[1720798130374,17.8996,139.67,139.58,6.4207]
[1720798130579,10.2,139.69,139.58,6.4207]
[1720798130580,7.1592,139.68,139.58,6.4207]
[1720798130768,7.1592,139.68,139.59,20.0]
[1720798130975,7.1594,139.68,139.59,20.0]
[1720798131157,7.1597,139.67,139.59,20.0]
[1720798131353,0.2,139.69,139.59,6.2582]
[1720798131572,7.1627,139.62,139.59,6.2582]
[1720798132262,17.8988,139.68,139.59,6.2582]
[1720798132479,7.1609,139.65,139.59,6.2582]
[1720798132677,7.16,139.67,139.59,6.2582]
[1720798132880,7.1603,139.66,139.59,6.2582]
[1720798133178,7.1608,139.65,139.6,1.42966735]
[1720798133374,18.0972,139.69,139.59,6.2582]
[1720798133584,7.1616,139.64,139.59,6.2582]
[1720798133784,18.0972,139.69,139.59,6.2582]
[1720798133985,7.1601,139.67,139.59,6.2582]
[1720798134567,7.1602,139.66,139.59,6.2582]
[1720798135584,7.1602,139.66,139.6,1.43225197]
[1720798136175,18.0972,139.69,139.6,1.43225197]
[1720798136374,7.1603,139.66,139.6,1.43225197]
[1720798137068,7.1607,139.65,139.6,1.43225197]
[1720798137386,7.1607,139.65,139.59,6.2582]
[1720798137586,28.0972,139.69,139.59,6.2582]
[1720798137765,7.1616,139.64,139.59,6.2582]
[1720798137966,7.1618,139.63,139.59,6.2582]
[1720798138789,18.1296687,139.63,139.59,6.2582]
[1720798142695,0.2,139.69,139.6,15.86]
[1720798142901,0.2,139.69,139.62,6.111]
[1720798143872,7.3589,139.69,139.62,6.111]
[1720798144098,0.2,139.69,139.62,6.111]
[1720798144394,7.359,139.69,139.62,6.111]
[1720798144603,7.1592,139.68,139.62,6.111]
[1720798144896,7.1597,139.67,139.62,6.111]
[1720798145099,7.1603,139.66,139.62,6.111]
[1720798146377,7.3587,139.69,139.62,6.111]
[1720798147394,0.2,139.69,139.62,6.111]
[1720798147980,7.1592,139.68,139.62,6.111]
[1720798148402,7.16,139.67,139.62,6.111]
[1720798148605,7.1603,139.66,139.62,6.111]
[1720798148785,0.2,139.69,139.62,6.111]
[1720798148979,7.16,139.67,139.62,6.111]
[1720798149405,7.1598,139.67,139.62,6.111]
[1720798149888,0.2,139.69,139.62,6.111]
[1720798150090,7.3591,139.69,139.62,6.111]
[1720798150294,0.2,139.69,139.62,6.111]
[1720798152892,7.3587,139.69,139.62,6.111]
[1720798153081,0.2,139.69,139.62,6.111]
[1720798153398,7.1605,139.66,139.62,6.111]
[1720798154085,7.1609,139.65,139.62,6.111]
[1720798154904,7.1604,139.66,139.62,6.111]
[1720798155096,7.1607,139.65,139.62,6.111]
[1720798155607,7.1614,139.64,139.62,6.111]
[1720798155814,35.7995,139.67,139.59,6.3625]
[1720798155989,0.2,139.69,139.59,6.3625]
[1720798156307,17.9028,139.65,139.59,6.3625]
[1720798156488,7.1624,139.62,139.59,6.3625]
[1720798156689,7.1617,139.64,139.59,6.3625]
[1720798157103,7.1628,139.61,139.59,6.3625]
[1720798157405,7.1617,139.64,139.59,6.3625]
[1720798157615,17.8988,139.68,139.59,6.3625]
[1720798157814,3.10182467,139.67,139.59,6.3625]
[1720798157996,7.1617,139.63,139.59,6.3625]
[1720798158320,17.9008,139.66,139.59,6.3625]
[1720798158487,45.0,139.65,139.59,6.3625]
[1720798158689,7.1624,139.62,139.59,6.3625]
[1720798159321,17.9008,139.66,139.59,6.3625]
[1720798159493,7.1629,139.61,139.59,6.3625]
[1720798160424,7.1633,139.6,139.59,6.3625]
[1720798161006,17.9003,139.67,139.59,6.3625]
[1720798161329,7.1619,139.63,139.59,6.3625]
[1720798161622,7.1618,139.63,139.59,6.3625]
[1720798162125,7.1623,139.62,139.59,6.3625]
[1720798162290,7.1619,139.63,139.59,6.3625]
[1720798162490,45.7978,139.68,139.59,6.3625]
[1720798162803,48.1020677,139.67,139.59,6.3625]
[1720798163001,7.1626,139.62,139.59,6.3625]
[1720798163515,18.0975,139.69,139.59,6.3625]
[1720798163715,3.1016831,139.68,139.59,6.3625]
[1720798164033,7.1616,139.64,139.59,6.3625]
[1720798164308,7.1626,139.62,139.59,6.3625]
[1720798164513,7.1618,139.63,139.59,6.3625]
[1720798165320,27.8991,139.68,139.59,6.3625]
[1720798165321,7.1608,139.65,139.59,6.3625]
[1720798165608,17.8991,139.68,139.59,6.3625]
[1720798165912,0.2,139.69,139.59,6.3625]
[1720798165913,17.9009,139.66,139.59,6.3625]
[1720798166109,7.1613,139.64,139.59,6.3625]
[1720798166409,17.8996,139.67,139.59,6.3625]
[1720798166794,7.1623,139.62,139.59,6.3625]
[1720798166993,7.1619,139.63,139.59,6.3625]
[1720798167502,7.1626,139.62,139.59,6.3625]
[1720798167710,17.8996,139.67,139.59,6.3625]
[1720798167904,7.1615,139.64,139.59,6.3625]
[1720798168105,7.1619,139.63,139.59,6.3625]
[1720798168522,7.1625,139.62,139.59,6.3625]
[1720798169118,7.1628,139.61,139.59,6.3625]
[1720798169689,17.9049,139.63,139.54,6.2495]
[1720798170004,7.1654,139.56,139.54,6.2495]
[1720798170188,17.91,139.59,139.47,22.2107]
[1720798170404,45.0,139.58,139.47,22.2107]
[1720798170603,7.1662,139.55,139.47,22.2107]
[1720798170803,7.1669,139.53,139.47,21.7107]
[1720798171125,7.1664,139.54,139.47,21.7107]
[1720798171429,55.0,139.58,139.47,21.7107]
[1720798171932,17.9127,139.57,139.47,21.7107]
[1720798172134,7.1665,139.54,139.47,21.7107]
[1720798172341,45.0,139.56,139.47,21.7107]
[1720798172638,7.167,139.53,139.47,21.7107]
[1720798172946,57.9088,139.6,139.47,21.7107]
[1720798173245,17.9111,139.58,139.47,21.7107]
[1720798173527,27.9111,139.58,139.47,21.7107]
[1720798173834,7.1665,139.54,139.47,21.7107]
[1720798174007,27.9111,139.58,139.47,21.7107]
[1720798174204,17.9143,139.56,139.47,21.7107]
[1720798174407,45.0,139.55,139.47,21.7107]
[1720798175218,7.1677,139.52,139.47,21.7107]
[1720798175434,7.1681,139.51,139.47,21.7107]
[1720798176215,7.1681,139.51,139.47,5.6503]
[1720798176419,7.1686,139.5,139.47,5.6503]
[1720798176610,27.9164,139.54,139.47,5.6503]
[1720798176809,17.9191,139.52,139.42,6.4097]
[1720798177023,45.0,139.51,139.42,6.4097]
[1720798177212,7.1696,139.48,139.42,6.4097]
[1720798177407,30.0,139.49,139.42,6.4097]
[1720798177614,7.1699,139.48,139.42,6.4097]
[1720798177930,7.1705,139.46,139.42,6.4097]
[1720798178117,30.0,139.49,139.42,6.4097]
[1720798178518,7.1708,139.46,139.42,6.4097]
[1720798178727,45.0,139.48,139.42,6.4097]
[1720798178931,30.0,139.49,139.42,6.4097]
[1720798179312,7.17,139.47,139.42,6.4097]
[1720798179723,7.1696,139.48,139.42,6.4097]
[1720798180013,30.0,139.49,139.43,21.28807626]
[1720798180307,7.1672,139.53,139.43,20.0]
[1720798181014,17.9132,139.57,139.44,67.8373]
[1720798181231,7.1662,139.55,139.45,20.0]
[1720798181556,7.166,139.55,139.45,20.0]
[1720798181733,7.1653,139.57,139.46,51.4653]
[1720798181946,7.165,139.57,139.47,20.0]
[1720798182319,16.0491,139.6,139.48,16.4087]